fUSD/lending_fUSD_20251221
["ID","MTS","AMOUNT","RATE_DAILY","PERIOD"]
[399411682,1766333447249,-1028.09825858,0.00017068,2]
[399411683,1766333447259,-1003.26967144,0.00017068,2]
[399411684,1766333447268,-1500.0,0.00017068,2]
[399411685,1766333447278,-1500.0,0.00017068,2]
[399411686,1766333447287,-1002.2323831,0.00017068,2]
[399411687,1766333447297,-1506.6907831,0.00017068,2]
[399411688,1766333447306,-1056.72332682,0.00017068,2]
[399411689,1766333447315,-849.22640037,0.00017068,2]
[399411690,1766333447325,-1500.0,0.00017068,2]
[399411691,1766333447335,-1157.70110556,0.00017068,2]
[399411692,1766333447344,-635.83054763,0.00017068,2]
[399411693,1766333447353,-1500.0,0.00017068,2]
[399411694,1766333447363,-1500.0,0.00017068,2]
[399411695,1766333447373,-1500.0,0.00017068,2]
[399411696,1766333447382,-1500.0,0.00017068,2]
[399411697,1766333447392,-1500.0,0.00017068,2]
[399411698,1766333447401,-1500.0,0.00017068,2]
[399411699,1766333447411,-1500.0,0.00017068,2]
[399411700,1766333447420,-397.75313595,0.00017068,2]
[399411701,1766333447430,-1500.0,0.00017068,2]
[399411702,1766333447440,-1502.24967112,0.00017068,2]
[399411703,1766333447449,-1500.0,0.00017068,2]
[399411704,1766333447459,-1838.83,0.00017108,2]
[399411705,1766333447468,-4000.0,0.00017108,2]
[399411706,1766333447478,-296.0,0.00017112,2]
[399411707,1766333447488,-13162.25,0.0001737,2]
[399411708,1766333447498,-1838.83,0.00017382,2]
[399411709,1766333447508,-1891.0,0.00017453,2]
[399411710,1766333447518,-219.80510971,0.00017521,2]
[399411711,1766333447528,-1605.54250255,0.00017534,2]
[399411712,1766333447538,-1637.88145515,0.00017616,2]
[399411713,1766333447548,-1503.80602504,0.00017616,2]
[399411714,1766333447557,-2000.0,0.00017616,2]
[399411715,1766333447567,-209.50912244,0.00017616,2]
[399411716,1766333447577,-2000.0,0.00017616,2]
[399411717,1766333447586,-2000.0,0.00017616,2]
[399411718,1766333447596,-2000.0,0.00017616,2]
[399411719,1766333447607,-2000.0,0.00017616,2]
[399411720,1766333447616,-2000.0,0.00017616,2]
[399411721,1766333447626,-864.55562986,0.00017616,2]
[399411722,1766333447639,-2000.0,0.00017616,2]
[399411723,1766333447648,-2000.0,0.00017616,2]
[399411724,1766333447658,-2000.0,0.00017616,2]
[399411725,1766333447668,-1838.83,0.00017656,2]
[399411726,1766333447679,-761.33843454,0.00017656,2]
[399411727,1766333447689,-1000.0,0.00017734,2]
[399411728,1766333447698,-7000.0,0.0001783,2]
[399411729,1766333447708,-6453.0,0.00017873,2]
[399411730,1766333447718,-500.0,0.00017895,2]
[399411731,1766333447728,-1838.83,0.0001793,2]
[399411732,1766333447738,-16020.57037152,0.00018,2]
[399411733,1766333447748,-1000.0,0.00018082,2]
[399411734,1766333447757,-2500.0,0.00018164,2]
[399411735,1766333447767,-734.47830759,0.00018164,2]
[399411736,1766333447777,-2500.0,0.00018164,2]
[399411737,1766333447786,-2443.06963152,0.00018164,2]
[399411738,1766333447796,-1860.83448827,0.00018164,2]
[399411739,1766333447805,-2500.0,0.00018164,2]
[399411740,1766333447814,-439.42444411,0.00018164,2]
[399411741,1766333447824,-2500.0,0.00018164,2]
[399411742,1766333447833,-2500.0,0.00018164,2]
[399411743,1766333447843,-1838.83,0.00018204,2]
[399411744,1766333447853,-1064.35,0.00018231,2]
[399411745,1766333447863,-498.66042041,0.00018474,2]
[399411746,1766333447931,-1838.88190316,0.00018478,2]
[399411747,1766333447941,-3000.0,0.00018712,2]
[399411748,1766333447950,-1065.61474305,0.00018712,2]
[399411749,1766333447959,-2648.62512129,0.00018712,2]
[399411750,1766333447969,-3000.0,0.00018712,2]
[399411751,1766333447979,-3000.0,0.00018712,2]
[399411752,1766333447988,-1000.0,0.0001876,2]
[399411753,1766333447998,-150.99,0.000188,2]
[399411754,1766333448007,-150.99,0.000188,2]
[399411755,1766333448016,-150.99,0.000188,2]
[399411756,1766333448026,-150.99,0.000188,2]
[399411757,1766333448035,-7000.0,0.0001883,2]
[399411758,1766333448045,-151.0,0.00018868,2]
[399411759,1766333448054,-83939.9320333,0.00018871,2]
[399411760,1766333448063,-160.39542526,0.000189,2]
[399411761,1766333448073,-84437.89412693,0.00019,2]
[399411762,1766333448083,-1354.02052844,0.00019,2]
[399411763,1766333448092,-300.0,0.00019,2]
[399411764,1766333448102,-554.55953732,0.00019,2]
[399411765,1766333448111,-5369.08,0.00019015,2]
[399411766,1766333448120,-308.90340785,0.00019082,2]
[399411767,1766333448130,-908.4371382,0.00019144,2]
[399411768,1766333448140,-231832.6823548,0.0001916,2]
[399411769,1766333448149,-3438.9318943,0.0001916,2]
[399411770,1766333448158,-3000.0,0.00019178,2]
[399411771,1766333448168,-3014.97600553,0.00019178,7]
[399411772,1766333448177,-790.0,0.00019178,2]
[399411773,1766333448187,-219.95868703,0.0001926,2]
[399411774,1766333448197,-3500.0,0.0001926,2]
[399411775,1766333448206,-3303.48287397,0.0001926,2]
[399411776,1766333448215,-333.35,0.00019306,2]
[399411777,1766333448224,-1000.0,0.00019438,2]
[399411778,1766333448233,-202.6997241,0.00019624,2]
[399411779,1766333448243,-51728.8635414,0.00019644,2]
[399411780,1766333448252,-767.3294243,0.00019644,2]
[399411781,1766333448261,-2416.0,0.00019661,2]
[399411782,1766333448271,-151.0,0.00019744,2]
[399411783,1766333448280,-156.587,0.00019744,2]
[399411784,1766333448289,-300.0,0.00019744,2]
[399411785,1766333448299,-162.380719,0.00019744,2]
[399411786,1766333448308,-153.50930745,0.00019744,2]
[399411787,1766333448319,-151.0,0.00019744,2]
[399411788,1766333448328,-200.0,0.00019744,2]
[399411789,1766333448337,-207.4,0.00019744,2]
[399411790,1766333448346,-215.0738,0.00019744,2]
[399411791,1766333448356,-223.0315306,0.00019744,2]
[399411792,1766333448365,-231.28369723,0.00019744,2]
[399411793,1766333448375,-239.84119403,0.00019744,2]
[399411794,1766333448384,-248.71531821,0.00019744,2]
[399411795,1766333448393,-257.91778498,0.00019744,2]
[399411796,1766333448403,-267.46074303,0.00019744,2]
[399411797,1766333448412,-3341.26500224,0.00019808,2]
[399411798,1766333448422,-7000.0,0.0001983,2]
[399411799,1766333448431,-1064.35,0.00019889,2]
[399411800,1766333448440,-190.0,0.0002,2]
[399411801,1766333448449,-250.0,0.0002,7]
[399411802,1766333448460,-188.59099171,0.0002,20]
[399411803,1766333448470,-1000.0,0.0002,7]
[399411804,1766333448480,-498.66042041,0.00020055,2]
[399411805,1766333448489,-1000.0,0.00020116,2]
[399411806,1766333448500,-1000.0,0.00020187,2]
[399411807,1766333448510,-1360.19288688,0.00020459,2]
[399411808,1766333448519,-21439.35,0.00020548,2]
[399411809,1766333448528,-191.85,0.00020548,2]
[399411810,1766333448538,-191.0,0.00020651,2]
[399411811,1766333448548,-502.43278642,0.000207,2]
[399411812,1766333448557,-2000.0,0.000207,2]
[399411813,1766333448569,-191.0,0.00020708,2]
[399411814,1766333448578,-83939.9320333,0.0002075,2]
[399411815,1766333448588,-1000.0,0.00020795,2]
[399411816,1766333448597,-222.21592581,0.00020815,2]
[399411817,1766333448607,-7000.0,0.0002083,2]
[399411818,1766333448617,-350.0,0.00021,2]
[399411819,1766333448626,-191.0,0.00021055,2]
[399411820,1766333448638,-12466.61,0.00021068,2]
[399411821,1766333448647,-191.0,0.00021078,2]
[399411822,1766333448657,-191.0,0.00021098,2]
[399411823,1766333448667,-311.1,0.00021113,2]
[399411824,1766333448676,-151.0,0.00021113,2]
[399411825,1766333448686,-277.35679052,0.00021113,2]
[399411826,1766333448696,-191.0,0.00021126,2]
[399411827,1766333448705,-191.0,0.00021238,2]
[399411828,1766333448715,-3071.1,0.00021238,2]
[399411829,1766333448724,-191.0,0.00021266,2]
[399411830,1766333448734,-191.0,0.00021341,2]
[399411831,1766333448743,-191.0,0.00021365,2]
[399411832,1766333448753,-2213.15,0.00021404,2]
[399411833,1766333448762,-191.0,0.00021475,2]
[399411834,1766333448772,-191.0,0.00021579,2]
[399411835,1766333448782,-16861.43189215,0.00021618,2]
[399411836,1766333448791,-498.66042041,0.00021637,2]
[399411837,1766333448800,-191.0,0.00021647,2]
[399411838,1766333448811,-5588.0,0.00021702,2]
[399411839,1766333448821,-191.0,0.00021766,2]
[399411840,1766333448831,-7000.0,0.0002183,2]
[399411841,1766333448841,-150.0,0.000219,2]
[399411842,1766333448850,-5000.0,0.00021918,2]
[399411843,1766333448861,-151.0,0.00021918,2]
[399411844,1766333448874,-5588.0,0.00021927,2]
[399411845,1766333448884,-397.16543724,0.00021955,2]
[399411846,1766333448895,-2014.45,0.0002199,3]
[399411847,1766333448905,-2417.64,0.00022,7]
[399411848,1766333448915,-5588.0,0.00022,2]
[399411849,1766333448923,-333.35,0.00022053,2]
[399411850,1766333448933,-191.0,0.00022102,2]
[399411851,1766333448942,-5588.0,0.00022134,2]
[399411852,1766333448953,-5588.0,0.00022384,2]
[399411853,1766333448962,-250.0,0.00022448,2]
[399411854,1766333448972,-191.0,0.0002247,2]
[399411855,1766333448981,-322.6107,0.00022482,2]
[399411856,1766333448990,-151.0,0.00022482,2]
[399411857,1766333448999,-287.61899177,0.00022482,2]
[399411858,1766333449009,-250.0,0.000225,7]
[399411859,1766333449018,-191.0,0.00022608,2]
[399411860,1766333449029,-83939.9320333,0.00022628,2]
[399411861,1766333449038,-151.17822928,0.00022753,2]
[399411862,1766333449047,-500.0,0.00022822,2]
[399411863,1766333449056,-191.0,0.00022924,2]
[399411864,1766333449065,-5588.0,0.00022984,2]
[399411865,1766333449077,-350.0,0.00022996,2]
[399411866,1766333449087,-400.0,0.00023,2]
[399411867,1766333449096,-3071.1,0.00023043,2]
[399411868,1766333449105,-498.66042041,0.00023218,2]
[399411869,1766333449115,-5588.0,0.00023303,2]
[399411870,1766333449124,-552.13552845,0.00023544,2]
[399411871,1766333449134,-150.0,0.00023663,2]
[399411872,1766333449144,-194.105,0.00023663,2]
[399411873,1766333449153,-193.419,0.00023663,2]
[399411874,1766333449162,-155.801,0.00023663,2]
[399411875,1766333449171,-211.428,0.00023663,2]
[399411876,1766333449181,-276.632,0.00023663,2]
[399411877,1766333449191,-250.0,0.00023663,2]
[399411878,1766333449200,-164.0,0.00023663,2]
[399411879,1766333449209,-224.555,0.00023663,2]
[399411880,1766333449218,-3456.0,0.00023663,2]
[399411881,1766333449227,-1326.0,0.00023663,2]
[399411882,1766333449237,-612.0,0.00023663,2]
[399411883,1766333449246,-1619.451,0.00023663,2]
[399411884,1766333449255,-518.0,0.00023663,2]
[399411885,1766333449265,-1262.0,0.00023663,2]
[399411886,1766333449274,-578.965,0.00023663,2]
[399411887,1766333449284,-6529.0,0.00023663,2]
[399411888,1766333449293,-9221.0,0.00023744,2]
[399411889,1766333449303,-334.5472959,0.00023851,2]
[399411890,1766333449312,-298.26089446,0.00023851,2]
[399411891,1766333449322,-1230.25024835,0.00024,2]
[399411892,1766333449341,-2000.0,0.000244,2]
[399411893,1766333449351,-1000.0,0.00024658,2]
[399411894,1766333449361,-250.5,0.00024658,2]
[399411895,1766333449371,-150.0,0.0002479,2]
[399411896,1766333449382,-151.0,0.00024797,7]
[399411897,1766333449391,-2417.64,0.000248,7]
[399411898,1766333449401,-151.0,0.000248,7]
[399411899,1766333449412,-603508.050343,0.000248,3]
[399411900,1766333449422,-498.66042041,0.000248,2]
[399411901,1766333449431,-3071.1,0.00024848,2]
[399411902,1766333449441,-84437.89412693,0.000249,2]
[399411903,1766333449451,-152.449645,0.000249,7]
[399411904,1766333449460,-151.0,0.000249,7]
[399411905,1766333449470,-492933.327871,0.000249,3]
[399411906,1766333449479,-166.66914047,0.000249,2]
[399411907,1766333449489,-250.0,0.00025,7]
[399411908,1766333449499,-150.06,0.00025,2]
[399411909,1766333449508,-450.0,0.00025,2]
[399411910,1766333449521,-151.17822928,0.00025029,2]
[399411911,1766333449530,-1360.19288688,0.0002507,2]
[399411912,1766333449540,-346.92554585,0.0002522,2]
[399411913,1766333449550,-309.29654756,0.0002522,2]
[399411914,1766333449559,-222.23,0.0002535,2]
[399411915,1766333449569,-222.23,0.000259,2]
[399411916,1766333449578,-597.19377965,0.0002599,2]
[399411917,1766333449589,-215.26219273,0.00026,2]
[399411918,1766333449598,-7436.86186478,0.00026,10]
[399411919,1766333449608,-162.03137973,0.00026,2]
[399411920,1766333449618,-359.76179104,0.00026589,2]
[399411921,1766333449627,-320.74051982,0.00026589,2]
[399411922,1766333449640,-3071.1,0.00026654,2]
[399411923,1766333449650,-150.0,0.00026663,2]
[399411924,1766333449659,-150.0,0.00026663,2]
[399411925,1766333449669,-150.0,0.00026663,2]
[399411926,1766333449678,-150.0,0.00026663,2]
[399411927,1766333449688,-3456.0,0.00026663,2]
[399411928,1766333449697,-1326.0,0.00026663,2]
[399411929,1766333449709,-612.0,0.00026663,2]
[399411930,1766333449723,-1609.0,0.00026663,2]
[399411931,1766333449732,-518.0,0.00026663,2]
[399411932,1766333449742,-1262.0,0.00026663,2]
[399411933,1766333449752,-564.0,0.00026663,2]
[399411934,1766333449761,-4050.728,0.00026663,2]
[399411935,1766333449771,-1000.0,0.00026676,2]
[399411936,1766333449781,-184.76959431,0.00026799,2]
[399411937,1766333449790,-250.0,0.00027,2]
[399411938,1766333449801,-1965.42480214,0.00027,14]
[399411939,1766333449811,-1028.07011982,0.00027,2]
[399411940,1766333449820,-530.0,0.00027,2]
[399411941,1766333449830,-500.0,0.00027,2]
[399411942,1766333449840,-151.17822928,0.00027304,2]
[399411943,1766333449850,-150.0,0.00027369,2]
[399411944,1766333449860,-222.38690268,0.00027397,6]
[399411945,1766333449870,-734.0,0.00027397,2]
[399411946,1766333449879,-500.0,0.00027397,2]
[399411947,1766333449888,-500.0,0.00027397,2]
[399411948,1766333449898,-500.0,0.00027397,2]
[399411949,1766333449907,-500.0,0.00027397,2]
[399411950,1766333449917,-500.0,0.00027397,2]
[399411951,1766333449930,-500.0,0.00027397,2]
[399411952,1766333449939,-500.0,0.00027397,2]
[399411953,1766333449949,-500.0,0.00027397,2]
[399411954,1766333449958,-500.0,0.00027397,2]
[399411955,1766333449968,-500.0,0.00027397,2]
[399411956,1766333449979,-500.0,0.00027397,2]
[399411957,1766333449990,-500.0,0.00027397,2]
[399411958,1766333450000,-500.0,0.00027397,2]
[399411959,1766333450010,-500.0,0.00027397,2]
[399411960,1766333450019,-500.0,0.00027397,2]
[399411961,1766333450029,-500.0,0.00027397,2]
[399411962,1766333450038,-500.0,0.00027397,2]
[399411963,1766333450047,-500.0,0.00027397,2]
[399411964,1766333450057,-500.0,0.00027397,2]
[399411965,1766333450068,-500.0,0.00027397,2]
[399411966,1766333450079,-500.0,0.00027397,2]
[399411967,1766333450088,-500.0,0.00027397,2]
[399411968,1766333450097,-500.0,0.00027397,2]
[399411969,1766333450107,-500.0,0.00027397,2]
[399411970,1766333450120,-500.0,0.00027397,2]
[399411971,1766333450131,-500.0,0.00027397,2]
[399411972,1766333450141,-500.0,0.00027397,2]
[399411973,1766333450156,-500.0,0.00027397,2]
[399411974,1766333450173,-500.0,0.00027397,2]
[399411975,1766333450183,-500.0,0.00027397,2]
[399411976,1766333450193,-500.0,0.00027397,2]
[399411977,1766333450204,-500.0,0.00027397,2]
[399411978,1766333450214,-500.0,0.00027397,2]
[399411979,1766333450224,-512.0,0.00027397,2]
[399411980,1766333450233,-500.0,0.00027397,2]
[399411981,1766333450244,-500.0,0.00027397,2]
[399411982,1766333450254,-500.0,0.00027397,2]
[399411983,1766333450264,-500.0,0.00027397,2]
[399411984,1766333450274,-500.0,0.00027397,2]
[399411985,1766333450283,-500.0,0.00027397,2]
[399411986,1766333450293,-500.0,0.00027397,2]
[399411987,1766333450304,-500.0,0.00027397,2]
[399411988,1766333450313,-500.0,0.00027397,2]
[399411989,1766333450323,-500.0,0.00027397,2]
[399411990,1766333450335,-500.0,0.00027397,2]
[399411991,1766333450345,-500.0,0.00027397,2]
[399411992,1766333450355,-500.0,0.00027397,2]
[399411993,1766333450366,-500.0,0.00027397,2]
[399411994,1766333450376,-500.0,0.00027397,2]
[399411995,1766333450391,-500.0,0.00027397,2]
[399411996,1766333450401,-500.0,0.00027397,2]
[399411997,1766333450410,-500.0,0.00027397,2]
[399411998,1766333450419,-500.0,0.00027397,2]
[399411999,1766333450429,-500.0,0.00027397,2]
[399412000,1766333450439,-500.0,0.00027397,2]
[399412001,1766333450450,-500.0,0.00027397,2]
[399412002,1766333450461,-500.0,0.00027397,2]
[399412003,1766333450472,-500.0,0.00027397,2]
[399412004,1766333450483,-500.0,0.00027397,2]
[399412005,1766333450496,-500.0,0.00027397,2]
[399412006,1766333450506,-500.0,0.00027397,2]
[399412007,1766333450520,-500.0,0.00027397,2]
[399412008,1766333450530,-500.0,0.00027397,2]
[399412009,1766333450541,-500.0,0.00027397,2]
[399412010,1766333450551,-500.0,0.00027397,2]
[399412011,1766333450560,-500.0,0.00027397,2]
[399412012,1766333450570,-500.0,0.00027397,2]
[399412013,1766333450579,-500.0,0.00027397,2]
[399412014,1766333450589,-500.0,0.00027397,2]
[399412015,1766333450598,-500.0,0.00027397,2]
[399412016,1766333450608,-500.0,0.00027397,2]
[399412017,1766333450618,-500.0,0.00027397,2]
[399412018,1766333450627,-500.0,0.00027397,2]
[399412019,1766333450637,-500.0,0.00027397,2]
[399412020,1766333450648,-500.0,0.00027397,2]
[399412021,1766333450658,-500.0,0.00027397,2]
[399412022,1766333450667,-500.0,0.00027397,2]
[399412023,1766333450677,-500.0,0.00027397,2]
[399412024,1766333450687,-500.0,0.00027397,2]
[399412025,1766333450697,-500.0,0.00027397,2]
[399412026,1766333450707,-500.0,0.00027397,2]
[399412027,1766333450717,-500.0,0.00027397,2]
[399412028,1766333450727,-500.0,0.00027397,2]
[399412029,1766333450737,-500.0,0.00027397,2]
[399412030,1766333450747,-500.0,0.00027397,2]
[399412031,1766333450756,-500.0,0.00027397,2]
[399412032,1766333450766,-500.0,0.00027397,2]
[399412033,1766333450775,-500.0,0.00027397,2]
[399412034,1766333450785,-500.0,0.00027397,2]
[399412035,1766333450794,-500.0,0.00027397,2]
[399412036,1766333450804,-500.0,0.00027397,2]
[399412037,1766333450813,-500.0,0.00027397,2]
[399412038,1766333450823,-500.0,0.00027397,2]
[399412039,1766333450832,-500.0,0.00027397,2]
[399412040,1766333450842,-500.0,0.00027397,2]
[399412041,1766333450852,-500.0,0.00027397,2]
[399412042,1766333450862,-500.0,0.00027397,2]
[399412043,1766333450871,-500.0,0.00027397,2]
[399412044,1766333450880,-500.0,0.00027397,2]
[399412045,1766333450889,-500.0,0.00027397,2]
[399412046,1766333450899,-500.0,0.00027397,2]
[399412047,1766333450909,-500.0,0.00027397,2]
[399412048,1766333450918,-500.0,0.00027397,2]
[399412049,1766333450927,-500.0,0.00027397,2]
[399412050,1766333450937,-500.0,0.00027397,2]
[399412051,1766333450946,-500.0,0.00027397,2]
[399412052,1766333450956,-500.0,0.00027397,2]
[399412053,1766333450965,-500.0,0.00027397,2]
[399412054,1766333450975,-500.0,0.00027397,2]
[399412055,1766333450984,-500.0,0.00027397,2]
[399412056,1766333450994,-578.0,0.00027397,2]
[399412057,1766333451003,-232.13,0.00027397,2]
[399412058,1766333451013,-300.0,0.00027397,2]
[399412059,1766333451023,-250.5,0.00027397,2]
[399412060,1766333451033,-500.0,0.00027397,14]
[399412061,1766333451042,-183.33,0.00027397,10]
[399412062,1766333451051,-3330.16289478,0.00027454,2]
[399412063,1766333451061,-250.0,0.000275,7]
[399412064,1766333451070,-1413.57889936,0.00027896,2]
[399412065,1766333451080,-1584.55557542,0.000279,2]
[399412066,1766333451090,-458.04273927,0.000279,2]
[399412067,1766333451100,-1406.60977323,0.000279,2]
[399412068,1766333451109,-373.07297731,0.00027958,2]
[399412069,1766333451119,-332.60791905,0.00027958,2]
[399412070,1766333451128,-2417.64,0.000281,7]
[399412071,1766333451137,-2000.0,0.000281,2]
[399412072,1766333451146,-3071.1,0.00028459,2]
[399412073,1766333451156,-165.14,0.00028493,2]
[399412074,1766333451165,-5093.58039381,0.00028549,2]
[399412075,1766333451174,-5000.0,0.00028549,2]
[399412076,1766333451184,-5000.0,0.00028549,2]
[399412077,1766333451193,-5000.0,0.00028549,2]
[399412078,1766333451202,-1293.3902328,0.00028646,15]
[399412079,1766333451212,-550.0,0.00029,2]
[399412080,1766333451221,-3588.2111429,0.00029116,2]
[399412081,1766333451231,-13162.25,0.00029151,2]
[399412082,1766333451240,-386.87667747,0.00029327,2]
[399412083,1766333451249,-344.91441206,0.00029327,2]
[399412084,1766333451261,-151.17822928,0.00029579,2]
[399412085,1766333451271,-150.0,0.00029663,2]
[399412086,1766333451283,-3456.0,0.00029663,2]
[399412087,1766333451293,-1326.0,0.00029663,2]
[399412088,1766333451302,-612.0,0.00029663,2]
[399412089,1766333451313,-1609.0,0.00029663,2]
[399412090,1766333451323,-518.0,0.00029663,2]
[399412091,1766333451334,-1262.0,0.00029663,2]
[399412092,1766333451344,-564.0,0.00029663,2]
[399412093,1766333451354,-1360.19288688,0.0002968,2]
[399412094,1766333451364,-3580.74458058,0.0002998,2]
[399412095,1766333451374,-10000.0,0.0003,10]
[399412096,1766333451384,-715.86688572,0.0003,21]
[399412097,1766333451394,-250.0,0.0003,7]
[399412098,1766333451405,-1000.0,0.0003,7]
[399412099,1766333451415,-250.5,0.00030137,2]
[399412100,1766333451425,-152.0,0.00030245,3]
[399412101,1766333451437,-3071.1,0.00030264,2]
[399412102,1766333451447,-2417.64,0.000304,7]
[399412103,1766333451456,-35898.0,0.000304,2]
[399412104,1766333451466,-401.19111454,0.00030696,2]
[399412105,1766333451476,-357.6762453,0.00030696,2]
[399412106,1766333451486,-5525.0,0.000309,3]
[399412107,1766333451495,-5525.0,0.000313,5]
[399412108,1766333451506,-196.18048418,0.000315,2]
[399412109,1766333451516,-150.0,0.000315,2]
[399412110,1766333451527,-2000.0,0.000318,2]
[399412111,1766333451537,-151.17822928,0.00031855,2]
[399412112,1766333451548,-150.0,0.00032,2]
[399412113,1766333451558,-416.03518578,0.00032065,2]
[399412114,1766333451567,-370.91026638,0.00032065,2]
[399412115,1766333451577,-3071.1,0.00032069,3]
[399412116,1766333451588,-250.0,0.000325,7]
[399412117,1766333451598,-150.0,0.00032663,2]
[399412118,1766333451608,-3456.0,0.00032663,2]
[399412119,1766333451617,-1326.0,0.00032663,2]
[399412120,1766333451627,-612.0,0.00032663,2]
[399412121,1766333451640,-1609.0,0.00032663,2]
[399412122,1766333451650,-518.0,0.00032663,2]
[399412123,1766333451659,-1262.0,0.00032663,2]
[399412124,1766333451670,-564.0,0.00032663,2]
[399412125,1766333451679,-250.5,0.00032877,2]
[399412126,1766333451689,-507.33,0.000329,14]
[399412127,1766333451699,-3762.98,0.000329,2]
[399412128,1766333451708,-600.83,0.00033,14]
[399412129,1766333451720,-1000.0,0.00033165,2]
[399412130,1766333451729,-431.42848765,0.00033434,2]
[399412131,1766333451739,-384.63394623,0.00033434,2]
[399412132,1766333451749,-150.0,0.00033699,2]
[399412133,1766333451759,-166.66914045,0.0003378,2]
[399412134,1766333451768,-3071.1,0.00033874,3]
[399412135,1766333451777,-500.0,0.00034055,2]
[399412136,1766333451786,-151.17822928,0.0003413,2]
[399412137,1766333451796,-3762.98,0.000342,2]
[399412138,1766333451806,-1360.19288688,0.0003429,2]
[399412139,1766333451815,-553.9,0.00034521,2]
[399412140,1766333451825,-774.61464,0.000346,10]
[399412141,1766333451834,-1000.0,0.00034647,2]
[399412142,1766333451844,-1000.0,0.00034657,2]
[399412143,1766333451853,-1000.0,0.00034789,2]
[399412144,1766333451863,-447.3913417,0.00034803,2]
[399412145,1766333451873,-398.86540225,0.00034803,2]
[399412146,1766333451882,-1000.0,0.00034822,2]
[399412147,1766333451891,-1000.0,0.00034838,2]
[399412148,1766333451901,-1000.0,0.00034869,2]
[399412149,1766333451910,-150.0,0.00034872,2]
[399412150,1766333451920,-507.33,0.000349,14]
[399412151,1766333451930,-1000.0,0.00034908,2]
[399412152,1766333451939,-1000.0,0.00034925,2]
[399412153,1766333451949,-150.0,0.00034931,2]
[399412154,1766333451959,-1000.0,0.00034949,2]
[399412155,1766333451968,-150.0,0.0003499,2]
[399412156,1766333451977,-250.0,0.00035,7]
[399412157,1766333451987,-1000.0,0.00035001,2]
[399412158,1766333451997,-1000.0,0.00035009,2]
[399412159,1766333452006,-1000.0,0.00035018,2]
[399412160,1766333452015,-1000.0,0.0003506,2]
[399412161,1766333452025,-150.0,0.00035062,2]
[399412162,1766333452034,-150.0,0.00035072,2]
[399412163,1766333452043,-1000.0,0.00035072,2]
[399412164,1766333452053,-1000.0,0.00035073,2]
[399412165,1766333452063,-1000.0,0.00035088,2]
[399412166,1766333452073,-1000.0,0.00035091,2]
[399412167,1766333452274,-1000.0,0.00035098,2]
[399412168,1766333452284,-150.0,0.00035118,2]
[399412169,1766333452294,-1000.0,0.00035129,2]
[399412170,1766333452303,-150.0,0.00035131,2]
[399412171,1766333452313,-1000.0,0.00035131,2]
[399412172,1766333452323,-150.0,0.00035186,2]
[399412173,1766333452332,-150.0,0.00035188,2]
[399412174,1766333452343,-150.0,0.00035197,2]
[399412175,1766333452352,-150.0,0.00035199,2]
[399412176,1766333452361,-1000.0,0.000352,2]
[399412177,1766333452371,-1000.0,0.00035233,2]
[399412178,1766333452382,-152.0,0.00035252,4]
[399412179,1766333452391,-1000.0,0.00035259,2]
[399412180,1766333452401,-150.0,0.00035266,2]
[399412181,1766333452411,-1000.0,0.00035267,2]